Cogmind - Beta 14 @@@ ROGUE MODE // 2025.04.07 @ 08:13:39 Player: Dosh Result: Destroyed by G-47 Trooper with Particle Gun Performance ------------- Evolutions (0) 0 Regions Visited (2) 400 Robots Destroyed (24) 120 Value Destroyed (667) 667 Prototype IDs (2) 40 Alien Tech Used (0) 0 Bonus (0) 0 TOTAL SCORE: 1227 Bonus ------- None Cogmind --------- Core Integrity 0/250 Matter 295/300 Energy 89/100 System Corruption 0% Temperature Warning (358) Movement Treading (160) Location -10/Mines Parts ------- > --- POWER (1) -------- (None) > --- PROPULSION (2) --- Light Treads Light Treads > --- UTILITY (2) ------ Large Storage Unit Light Armor Plating > --- WEAPON (2) ------- Small Laser Particle Gun > --- INVENTORY (15) --- Light Ion Engine Light Treads Light Treads High-capacity Storage Unit Light Armor Plating Light Armor Plating Light Armor Plating Hacking Suite Medium Laser Peak State ------------ > --- POWER ------------ Light Ion Engine > --- PROPULSION ------- Light Treads Light Treads > --- UTILITY ---------- Large Storage Unit Light Armor Plating > --- WEAPON ----------- Small Laser Particle Gun > --- INVENTORY -------- Light Ion Engine Light Treads High-capacity Storage Unit Light Armor Plating Light Armor Plating Light Armor Plating Light Armor Plating Hacking Suite Medium Laser [Rating: 9] Favorites ----------- Power Light Ion Engine Engine Light Ion Engine Propulsion Light Treads Treads Light Treads Utility Light Armor Plating Storage Large Storage Unit Processor Targeting Computer Protection Light Armor Plating Weapon Small Laser Energy Gun Small Laser Ballistic Gun Light Assault Rifle Build | -11 -10 -10 ------- Run | Yrd Mat Min Slots Evolved . | . . . Power . | . . . Propulsion . | . . . Utility . | . . . Weapon . | . . . Parts Attached 21 | 6 14 1 Power 2 | 1 1 . Engine 2 | 1 1 . Core . | . . . Reactor . | . . . Propulsion 7 | 2 5 . Treads 7 | 2 5 . Leg . | . . . Wheel . | . . . Hover . | . . . Flight . | . . . Utility 5 | 1 3 1 Device . | . . . Storage 2 | 1 1 . Processor 1 | . 1 . Hackware . | . . . Protection 2 | . 1 1 Artifact . | . . . Weapon 7 | 2 5 . Energy Gun 4 | . 4 . Energy Cannon . | . . . Ballistic Gun 3 | 2 1 . Ballistic Cannon . | . . . Launcher . | . . . Special Weapon . | . . . Impact Weapon . | . . . Slashing Weapon . | . . . Piercing Weapon . | . . . Special Melee Weapon . | . . . Unidentified Prototypes . | . . . Parts Lost 7 | . 5 2 Power 1 | . . 1 Propulsion 2 | . 2 . Utility 1 | . . 1 Weapon 3 | . 3 . Highest Loss Streak 2 | . 2 2 To Critical Strikes . | . . . Average Slot Usage (%) 98 | . 98 92 Engine 13 | . 14 7 Treads 27 | . 27 28 Storage 14 | . 14 14 Processor 3 | . 3 . Protection 9 | . 9 14 Energy Gun 22 | . 22 28 Ballistic Gun 5 | . 5 . Peak Build Rating 9 | 6 9 9 Average Rating 7 | 4 8 8 On Entrance 5 | . 6 9 Naked Turns . | . . . Heaviest Build 30 | 13 30 . Greatest Support 40 | 40 40 . Greatest Overweight (x) . | . . . Average Overweight (x) . | . . . Largest Inventory Capacity 15 | 8 15 15 Average Capacity 11 | 6 11 15 Most Carried 10 | 2 10 10 Average Carried 6 | . 7 9 Final Capacity 15 | 8 15 15 Final Carried 10 | 2 10 9 Class Distribution -------------------- 51% | Mutant 48% | Scavenger-Mutant Dominant Class ---------------- Scavenger-Mutant | -10/Materials Scavenger-Mutant | -10/Mines Resources | -11 -10 -10 ----------- Run | Yrd Mat Min Matter Collected 506 | 192 314 . Remotely . | . . . Salvage Created 859 | . 859 . Parts 42 | . 42 . Haulers Intercepted 2 | . 2 . Recyclers Shooed 1 | . 1 . Parts Field Recycled . | . . . Retrieved Matter . | . . . Parts Self-Destructed . | . . . Prevented . | . . . Kills | -11 -10 -10 ------- Run | Yrd Mat Min Combat Hostiles Destroyed 16 | . 16 . Guns 16 | . 16 . Classes Destroyed 6 | . 6 . Worker 2 | . 2 . Tunneler 1 | . 1 . Hauler 2 | . 2 . Operator 1 | . 1 . Watcher 2 | . 2 . Grunt 16 | . 16 . Best Kill Streak 3 | . 3 . Combat Bots Only 3 | . 3 . Max Kills in Single Turn 1 | . 1 . Gunslinging . | . . . Exploded . | . . . Melee . | . . . Uniques/NPCs Destroyed . | . . . Combat | -11 -10 -10 -------- Run | Yrd Mat Min Hostile Shots Fired 121 | . 104 17 Missed 27 | . 23 4 Damage Taken 1353 | . 1162 191 Core 257 | . 179 78 Absorbed by Shields . | . . . Regen/Repaired (Parts) 224 | . 224 . Core Remaining (%) 100 | 100 . . Volleys Fired 94 | . 88 6 Largest 2 | . 2 2 Hottest 105 | . 105 105 Shots Fired 182 | . 170 12 Gun 182 | . 170 12 Cannon . | . . . Launcher . | . . . Special . | . . . Kinetic 73 | . 73 . Thermal 88 | . 76 12 Explosive . | . . . Electromagnetic 21 | . 21 . Robot Hit Streak 20 | . 20 9 Robot Miss Streak 4 | . 4 3 Penetration Max . | . . . Secondary Targets . | . . . Shots Hit Robots 125 | . 117 8 Core Hits 49 | . 48 1 Critical Kills . | . . . Critical Parts Destroyed . | . . . Critical Strikes 2 | . 2 . Burn 2 | . 2 . Melee Attacks . | . . . Impact . | . . . Slashing . | . . . Piercing . | . . . Sneak Attacks . | . . . Combat Hostiles . | . . . Follow-up Attacks . | . . . Damage Inflicted 1512 | . 1387 125 Guns 1478 | . 1353 125 Cannons . | . . . Explosions . | . . . Melee . | . . . Ramming 34 | . 34 . Kinetic 501 | . 501 . Thermal 736 | . 611 125 Explosive . | . . . Electromagnetic 241 | . 241 . Impact . | . . . Slashing . | . . . Piercing . | . . . Highest Corruption . | . . . Average Corruption . | . . . Corruption Purged . | . . . Corruption Blocked . | . . . Overload Shots . | . . . Overflow Damage . | . . . Projectiles . | . . . Explosions . | . . . Melee . | . . . Knockbacks . | . . . Impact . | . . . Kinetic . | . . . Secondary . | . . . Self-Inflicted Damage . | . . . Shots . | . . . Rammed 7 | . 7 . Targets Rammed 8 | . 8 . Kicked . | . . . Crushed 1 | . 1 . Highest Temperature 361 | . 361 349 Average Temperature 85 | . 78 194 Received Heat Transfer 729 | . 624 105 Effects 1 | . 1 . Shutdowns 1 | . 1 . Siege Activations . | . . . Robots Corrupted . | . . . Combat Hostiles . | . . . Parts Fried . | . . . Impact Corruptions . | . . . Robots Melted . | . . . Combat Hostiles . | . . . Parts Melted 3 | . 3 . Heat Transferred 1852 | . 1579 273 Parts Sabotaged . | . . . Parts Stolen . | . . . Parts Stripped . | . . . Power Chain Reactions . | . . . Alert | -11 -10 -10 ------- Run | Yrd Mat Min Peak Influence 358 | . 358 39 Initial 39 | . . 39 Average 172 | . 180 27 Maximum Alert Level 1 | . 1 . Low Security (%) 60 | 100 58 100 Level 1 39 | . 41 . Level 2 . | . . . Level 3 . | . . . Level 4 . | . . . Level 5 . | . . . High Security . | . . . Max Security . | . . . Squads Dispatched 4 | . 4 . Investigation 3 | . 3 . Extermination . | . . . Reinforcement 1 | . 1 . Assault . | . . . Garrison . | . . . Intercept . | . . . Searches Triggered . | . . . Construction Impeded . | . . . Haulers Reinforced . | . . . Active Scanning Responses . | . . . Cargo Convoy Interrupts . | . . . Stealth | -11 -10 -10 --------- Run | Yrd Mat Min Distress Signals 3 | . 3 . Communications Jammed . | . . . Distress Signals . | . . . Times Spotted 31 | . 29 2 Peak Tracking Total 6 | . 6 2 Tactical Retreats 4 | . 4 . Traps | -11 -10 -10 ------- Run | Yrd Mat Min Traps Triggered 2 | . 2 . Indirectly . | . . . Trap Hack Attempts . | . . . Triggered . | . . . Disarmed . | . . . Reprogrammed . | . . . Reused . | . . . Traps Extracted . | . . . Installed . | . . . Triggered . | . . . Machines | -11 -10 -10 ---------- Run | Yrd Mat Min Machines Disabled 1 | . 1 . Max in Single Turn 1 | . 1 . Machines Repaired . | . . . Machines Dismantled . | . . . Machines Sabotaged . | . . . Overloaded Fab Kills . | . . . Hacking | -11 -10 -10 --------- Run | Yrd Mat Min Machines Accessed 9 | . 9 . Terminals 7 | . 7 . Fabricators . | . . . Repair Stations 1 | . 1 . Recycling Units 1 | . 1 . Scanalyzers . | . . . Garrison Access . | . . . Total Hacks 24 | . 24 . Successful 16 | . 16 . Failed 8 | . 8 . Catastrophic . | . . . Database Lockouts . | . . . Manual 16 | . 16 . Terminals 18 | . 18 . Fabricators . | . . . Repair Stations 5 | . 5 . Recycling Units 1 | . 1 . Scanalyzers . | . . . Garrison Access . | . . . Terminal Hacks 5 | . 5 . Robot Schematic 1 | . 1 . Robot Analysis 3 | . 3 . Prototype ID Bank 1 | . 1 . Fabricator Hacks . | . . . Repair Station Hacks 4 | . 4 . Scan Component 2 | . 2 . Repair 2 | . 2 . Recycling Unit Hacks . | . . . Scanalyzer . | . . . Garrison Access Hacks . | . . . Unauthorized Hacks 7 | . 7 . Terminals 6 | . 6 . Botnet 1 | . 1 . Skim 5 | . 5 . Fabricators . | . . . Repair Stations . | . . . Recycling Units 1 | . 1 . Tunnel 1 | . 1 . Scanalyzers . | . . . Garrison Access . | . . . Data Cores Recovered . | . . . Used . | . . . Hacking Detections 8 | . 8 . Full Trace Events . | . . . Feedback Events . | . . . Feedback Blocked . | . . . Robot Schematics Acquired 1 | . 1 . Robots Built . | . . . Authchips . | . . . Time . | . . . Total Robot Build Rating . | . . . Part Schematics Acquired . | . . . Parts Built . | . . . Authchips . | . . . Time . | . . . Total Part Build Rating . | . . . Parts Repaired 2 | . 2 . Time 52 | . 52 . Parts Recycled . | . . . Recycled Matter . | . . . Retrieved Matter . | . . . Retrieved Components . | . . . Parts Scanalyzed . | . . . Part Schematics Acquired . | . . . Parts Damaged . | . . . Bothacking | -11 -10 -10 ------------ Run | Yrd Mat Min Used RIF Installer . | . . . Robots Hacked . | . . . Non-combat . | . . . Combat . | . . . Robot Hacks Applied . | . . . Relay Couplers Released . | . . . Fabnet Peak Effective % . | . . . Robots Rewired . | . . . Allies Hacked . | . . . Hacks Repelled . | . . . Allies | -11 -10 -10 -------- Run | Yrd Mat Min Total Allies . | . . . Largest Group . | . . . Highest-Rated Group . | . . . Highest-Rated Ally . | . . . Total Orders . | . . . Ally Attacks . | . . . Total Damage . | . . . Kills . | . . . Allies Corrupted . | . . . Allies Melted . | . . . Intel | -11 -10 -10 ------- Run | Yrd Mat Min Robot Analysis Total 3 | . 3 . Derelict Logs Recovered . | . . . Drone Launches . | . . . Drone Recoveries . | . . . Exploration | -11 -10 -10 ------------- Run | Yrd Mat Min Turns Passed 1744 | 63 1663 18 Spaces Moved 747 | 36 711 . Core 4 | 4 . . Treads 743 | 32 711 . Legs . | . . . Wheels . | . . . Hover . | . . . Flight . | . . . Fastest Speed 50 | 50 160 . Average Speed 159 | 147 160 . Slowest Speed 160 | 160 160 . Overloaded Moves . | . . . Propulsion Burnouts . | . . . Robots Hopped . | . . . Cave-ins Triggered . | . . . Exploration Rate (%) 34 | 4 97 3 Regions Visited 2 Branch Regions 1 Pre-discovered Areas 2 | . 2 . Known Exits Taken . | . . . Unknown Exits Taken 2 | 1 1 . Scrap Searched . | . . . Spaces Dug . | . . . Terrain Destroyed . | . . . Melee . | . . . Projectile . | . . . AOE . | . . . Terrain Rammed . | . . . Walls Destroyed . | . . . Machines Disabled . | . . . Actions | -11 -10 -10 --------- Run | Yrd Mat Min Total 1117 | 43 1067 7 Wait 234 | . 234 . Move 745 | 35 710 . Hop . | . . . Pick Up 12 | 2 10 . Fast Attach 10 | 6 4 . Attach 4 | . 3 1 Detach 1 | . 1 . Swap 7 | . 7 . Drop 2 | . 2 . Fire 94 | . 88 6 Melee . | . . . Ram . | . . . Kick . | . . . Crush 8 | . 8 . Escape Stasis . | . . . Rewire . | . . . Trap . | . . . Miscellaneous . | . . . Route ------- -11/Scrapyard -10/Materials (discovered 5 exits: *Mat x3 / [*Min] / Sub) -10/Mines (discovered 2 exits: Mat / Sub) History --------- Turn | Location | Event 36 | -11/Scrapyard | Discovered new exit (range 15) 64 | -11/Scrapyard | Entered Materials 277 | -10/Materials | Discovered new exit (range 12) 308 | -10/Materials | Build established: Mutant 323 | -10/Materials | Core integrity fell below 50% 848 | -10/Materials | Learned location of 2 exits from Mines 886 | -10/Materials | Identified exit to Materials 886 | -10/Materials | Identified exit to Subcaves 890 | -10/Materials | Learned Storage emergency access door positions 894 | -10/Materials | Learned location of 1 exit from Recycling 959 | -10/Materials | Build established: Scavenger-Mutant 1506 | -10/Materials | Repaired Lgt. Treads 1534 | -10/Materials | Repaired Lgt. Treads 1727 | -10/Materials | Entered Mines 1730 | -10/Mines | Core integrity fell below 20% 1745 | -10/Mines | Destroyed by G-47 Trooper with Particle Gun Last Messages --------------- 01591_ Slammed into K-01 Serf. 01654_ Connecting with Terminal... >>Analysis(Y-45 Defender) Downloading analysis... Y-45 Defender Tier: 2 Y-series armored sentries are equipped with a mix of thermal and kinetic weaponry. The Y-45 guards important locations and vital machinery, and remains at its station unless they identify a hostile robot or are alerted to the presence of one nearby. LOCATION=UNKNOWN GOAL=ESCAPE Loading 2 Mines exits... 01731_ Lgt. Armor Plating destroyed. 01735_ G-34 Mercenary heat damages Aluminum Leg. 01739_ Lgt. Ion Engine destroyed. 01741_ G-34 Mercenary heat damages Sml. Laser. 01741_ G-34 Mercenary overheating. 01743_ G-34 Mercenary heat damages Heat Sink. 01743_ G-34 Mercenary overheating. Map ----- +----------------------------------------------------+ | ??????????????????????????????? | | ??????????????????????????????? | | ??????????????????????????????? | | ??????????????????????????????? | | ??????????????????????????????? | | ??????????????????????????????? | | ??????????????????????????????? | | ??????????????????????????????? | | ??????????????????????????????? | | ??????????????????????????????? | | ?????? ??????????????????????? | | ?????? ??????????????????????? | | ?????? ??????????????????????? | | ?????? ??????????????????????? | | ?????# ??????????????????????? | | ????? ??????????????????????? | | ????? ??????????????????????? | | ????? ??????????????????????? | | ????? ??????????????????????? | | ????? #??????????????????????? | | ?????#$#??????????????????????? | | ?????# #??????????????????????? | | ?????# #??????????????????????? | | ??#### ###????????????????????? | | ??# #????????????????????? | | ??# @ #????????????????????? | | ??# #????????????????????? | | ??# gg #????????????????????? | | ??# #???????????????